fUSD/lending_fUSD_20250530
["ID","MTS","AMOUNT","RATE_DAILY","PERIOD"]
[363209629,1748623884804,-236.77329193,0.00022739,2]
[363209630,1748623884814,-420.0,0.00022739,2]
[363209631,1748623884827,-535.71,0.00022739,2]
[363209632,1748623884836,-420.0,0.00022739,2]
[363209633,1748623884845,-480.21,0.00022739,2]
[363209634,1748623884855,-952.02,0.00022739,2]
[363209635,1748623884865,-160.0,0.00022739,2]
[363209636,1748623884874,-420.0,0.00022739,2]
[363209637,1748623884884,-458.52,0.00022739,2]
[363209638,1748623884893,-420.0,0.00022739,2]
[363209639,1748623884903,-610.95,0.00022739,2]
[363209640,1748623884913,-420.0,0.00022739,2]
[363209641,1748623884923,-420.0,0.00022739,2]
[363209642,1748623884933,-420.0,0.00022739,2]
[363209643,1748623884943,-420.0,0.00022739,2]
[363209644,1748623884955,-530.64,0.00022739,2]
[363209645,1748623884965,-160.0,0.00022739,2]
[363209646,1748623884975,-420.0,0.00022739,2]
[363209647,1748623884984,-1175.45,0.00022739,2]
[363209648,1748623884994,-420.0,0.00022739,2]
[363209649,1748623885004,-478.61,0.00022739,2]
[363209650,1748623885013,-688.56,0.00022739,2]
[363209651,1748623885023,-420.0,0.00022739,2]
[363209652,1748623885033,-420.0,0.00022739,2]
[363209653,1748623885043,-612.25,0.00022739,2]
[363209654,1748623885053,-420.0,0.00022739,2]
[363209655,1748623885063,-151.0,0.00022739,7]
[363209656,1748623885073,-542.39,0.00022739,2]
[363209657,1748623885083,-649.81,0.00022739,2]
[363209658,1748623885093,-420.0,0.00022739,2]
[363209659,1748623885102,-420.0,0.00022739,2]
[363209660,1748623885112,-420.0,0.00022739,2]
[363209661,1748623885121,-420.0,0.00022739,2]
[363209662,1748623885131,-459.23,0.00022739,2]
[363209663,1748623885143,-151.0,0.00022739,7]
[363209664,1748623885152,-631.94,0.00022739,2]
[363209665,1748623885162,-420.0,0.00022739,2]
[363209666,1748623885172,-420.0,0.00022739,2]
[363209667,1748623885182,-151.0,0.00022739,7]
[363209668,1748623885193,-420.0,0.00022739,2]
[363209669,1748623885205,-420.0,0.00022739,2]
[363209670,1748623885215,-151.0,0.00022739,7]
[363209671,1748623885224,-151.0,0.00022739,7]
[363209672,1748623885235,-471.32461937,0.00022739,2]
[363209673,1748623885246,-420.0,0.00022739,2]
[363209674,1748623885255,-574.53,0.00022739,2]
[363209675,1748623885266,-420.0,0.00022739,2]
[363209676,1748623885276,-420.0,0.00022739,2]
[363209677,1748623885286,-673.0,0.00022739,2]
[363209678,1748623885296,-452.89,0.00022739,2]
[363209679,1748623885307,-420.0,0.00022739,2]
[363209680,1748623885317,-897.65,0.00022739,2]
[363209681,1748623885326,-1109.49,0.00022739,2]
[363209682,1748623885335,-420.0,0.00022739,2]
[363209683,1748623885346,-420.0,0.00022739,2]
[363209684,1748623885355,-420.0,0.00022739,2]
[363209685,1748623885365,-420.0,0.00022739,2]
[363209686,1748623885375,-420.0,0.00022739,2]
[363209687,1748623885384,-478.29,0.00022739,2]
[363209688,1748623885393,-1117.4,0.00022739,2]
[363209689,1748623885403,-735.72,0.00022739,2]
[363209690,1748623885413,-420.0,0.00022739,2]
[363209691,1748623885423,-420.0,0.00022739,2]
[363209692,1748623885432,-478.4,0.00022739,2]
[363209693,1748623885442,-2192.84,0.00022739,2]
[363209694,1748623885454,-420.0,0.00022739,2]
[363209695,1748623885464,-227.077848,0.00022739,7]
[363209696,1748623885473,-559.77,0.00022739,2]
[363209697,1748623885483,-420.0,0.00022739,2]
[363209698,1748623885492,-941.66,0.00022739,2]
[363209699,1748623885502,-227.077848,0.00022739,7]
[363209700,1748623885511,-151.0,0.00022739,7]
[363209701,1748623885524,-420.0,0.00022739,2]
[363209702,1748623885534,-160.0,0.00022739,2]
[363209703,1748623885547,-420.0,0.00022739,2]
[363209704,1748623885556,-420.0,0.00022739,2]
[363209705,1748623885565,-629.32,0.00022739,2]
[363209706,1748623885575,-420.0,0.00022739,2]
[363209707,1748623885586,-655.94,0.00022739,2]
[363209708,1748623885596,-646.24,0.00022739,2]
[363209709,1748623885606,-420.0,0.00022739,2]
[363209710,1748623885615,-1810.940124,0.00022739,7]
[363209711,1748623885624,-164.27,0.00022739,2]
[363209712,1748623885634,-420.0,0.00022739,2]
[363209713,1748623885644,-420.0,0.00022739,2]
[363209714,1748623885654,-1197.74,0.00022739,2]
[363209715,1748623885663,-460.72,0.00022739,2]
[363209716,1748623885674,-1810.940124,0.00022739,7]
[363209717,1748623885684,-538.21034538,0.00022739,2]
[363209718,1748623885693,-548.7,0.00022739,2]
[363209719,1748623885705,-611.88,0.00022739,2]
[363209720,1748623885715,-345.76208385,0.00022739,2]
[363209721,1748623885725,-1153.56,0.00022739,2]
[363209722,1748623885734,-1060.067344,0.00022739,7]
[363209723,1748623885744,-420.0,0.00022739,2]
[363209724,1748623885754,-612.61,0.00022739,2]
[363209725,1748623885764,-1060.067344,0.00022739,7]
[363209726,1748623885773,-273.21920171,0.00022739,2]
[363209727,1748623885784,-778.7,0.00022739,2]
[363209728,1748623885793,-1570.86,0.00022739,2]
[363209729,1748623885803,-420.0,0.00022739,2]
[363209730,1748623885813,-1239.43,0.00022739,2]
[363209731,1748623885823,-420.0,0.00022739,2]
[363209732,1748623885832,-420.0,0.00022739,2]
[363209733,1748623885841,-151.0,0.00022739,7]
[363209734,1748623885850,-588.29,0.00022739,2]
[363209735,1748623885860,-765.42,0.00022739,2]
[363209736,1748623885869,-420.0,0.00022739,2]
[363209737,1748623885879,-420.0,0.00022739,2]
[363209738,1748623885888,-600.84,0.00022739,2]
[363209739,1748623885897,-420.0,0.00022739,2]
[363209740,1748623885906,-1370.53,0.00022739,2]
[363209741,1748623885916,-561.7,0.00022739,2]
[363209742,1748623885925,-151.0,0.00022739,7]
[363209743,1748623885934,-849.49,0.00022739,2]
[363209744,1748623885945,-420.0,0.00022739,2]
[363209745,1748623885956,-1341.64,0.00022739,2]
[363209746,1748623885965,-793.37,0.00022739,2]
[363209747,1748623885976,-420.0,0.00022739,2]
[363209748,1748623885986,-420.0,0.00022739,2]
[363209749,1748623885998,-420.0,0.00022739,2]
[363209750,1748623886007,-420.0,0.00022739,2]
[363209751,1748623886018,-420.0,0.00022739,2]
[363209752,1748623886028,-507.27,0.00022739,2]
[363209753,1748623886037,-795.46,0.00022739,2]
[363209754,1748623886047,-420.0,0.00022739,2]
[363209755,1748623886056,-1299.18,0.00022739,2]
[363209756,1748623886066,-491.61,0.00022739,2]
[363209757,1748623886075,-420.0,0.00022739,2]
[363209758,1748623886084,-420.0,0.00022739,2]
[363209759,1748623886093,-420.0,0.00022739,2]
[363209760,1748623886104,-847.181533,0.00022739,7]
[363209761,1748623886113,-420.0,0.00022739,2]
[363209762,1748623886123,-847.181533,0.00022739,7]
[363209763,1748623886132,-487.44,0.00022739,2]
[363209764,1748623886141,-5009.574866,0.00022739,7]
[363209765,1748623886150,-420.0,0.00022739,2]
[363209766,1748623886159,-5009.574866,0.00022739,7]
[363209767,1748623886169,-420.0,0.00022739,2]
[363209768,1748623886179,-654.18,0.00022739,2]
[363209769,1748623886191,-1053.13,0.00022739,2]
[363209770,1748623886202,-1102.21,0.00022739,2]
[363209771,1748623886211,-420.0,0.00022739,2]
[363209772,1748623886220,-151.0,0.00022739,7]
[363209773,1748623886230,-151.0,0.00022739,7]
[363209774,1748623886240,-420.0,0.00022739,2]
[363209775,1748623886250,-484.6,0.00022739,2]
[363209776,1748623886259,-1279.43,0.00022739,2]
[363209777,1748623886268,-151.0,0.00022739,7]
[363209778,1748623886278,-599.02,0.00022739,2]
[363209779,1748623886287,-420.0,0.00022739,2]
[363209780,1748623886297,-449.09,0.00022739,2]
[363209781,1748623886307,-700.17,0.00022739,2]
[363209782,1748623886316,-420.0,0.00022739,2]
[363209783,1748623886326,-452.65,0.00022739,2]
[363209784,1748623886335,-849.67,0.00022739,2]
[363209785,1748623886344,-420.0,0.00022739,2]
[363209786,1748623886353,-420.0,0.00022739,2]
[363209787,1748623886362,-717.17,0.00022739,2]
[363209788,1748623886373,-420.0,0.00022739,2]
[363209789,1748623886383,-1092.63,0.00022739,2]
[363209790,1748623886393,-420.0,0.00022739,2]
[363209791,1748623886403,-2339.29,0.00022739,2]
[363209792,1748623886412,-599.16,0.00022739,2]
[363209793,1748623886422,-420.0,0.00022739,2]
[363209794,1748623886431,-420.0,0.00022739,2]
[363209795,1748623886440,-151.0,0.00022739,7]
[363209796,1748623886451,-697.45,0.00022739,2]
[363209797,1748623886461,-420.0,0.00022739,2]
[363209798,1748623886470,-420.0,0.00022739,2]
[363209799,1748623886480,-151.0,0.00022739,7]
[363209800,1748623886489,-477.21,0.00022739,2]
[363209801,1748623886498,-420.0,0.00022739,2]
[363209802,1748623886509,-151.0,0.00022739,7]
[363209803,1748623886518,-950.74,0.00022739,2]
[363209804,1748623886528,-420.0,0.00022739,2]
[363209805,1748623886539,-151.0,0.00022739,7]
[363209806,1748623886716,-654.96,0.00022739,2]
[363209807,1748623886756,-420.0,0.00022739,2]
[363209808,1748623886765,-151.0,0.00022739,7]
[363209809,1748623886774,-154.54,0.00022739,2]
[363209810,1748623886783,-420.0,0.00022739,2]
[363209811,1748623886792,-626.07,0.00022739,2]
[363209812,1748623886801,-1244.29,0.00022739,2]
[363209813,1748623886810,-420.0,0.00022739,2]
[363209814,1748623886819,-157.300792,0.00022739,7]
[363209815,1748623886828,-543.34,0.00022739,2]
[363209816,1748623886838,-523.41,0.00022739,2]
[363209817,1748623886847,-506.91,0.00022739,2]
[363209818,1748623886856,-420.0,0.00022739,2]
[363209819,1748623886865,-151.0,0.00022739,7]
[363209820,1748623886878,-506.95,0.00022739,2]
[363209821,1748623886888,-595.13,0.00022739,2]
[363209822,1748623886897,-910.81,0.00022739,2]
[363209823,1748623886906,-1403.72,0.00022739,2]
[363209824,1748623886916,-151.0,0.00022739,7]
[363209825,1748623886925,-642.37,0.00022739,2]
[363209826,1748623886934,-783.16,0.00022739,2]
[363209827,1748623886943,-579.96,0.00022739,2]
[363209828,1748623886955,-420.0,0.00022739,2]
[363209829,1748623886964,-420.0,0.00022739,2]
[363209830,1748623886973,-1405.5,0.00022739,2]
[363209831,1748623886983,-420.0,0.00022739,2]
[363209832,1748623886992,-420.0,0.00022739,2]
[363209833,1748623887002,-341.1,0.00022739,2]
[363209834,1748623887011,-420.0,0.00022739,2]
[363209835,1748623887021,-420.0,0.00022739,2]
[363209836,1748623887030,-1121.8,0.00022739,2]
[363209837,1748623887039,-441.19,0.00022739,2]
[363209838,1748623887049,-450.49,0.00022739,2]
[363209839,1748623887059,-902.51,0.00022739,2]
[363209840,1748623887068,-420.0,0.00022739,2]
[363209841,1748623887077,-420.0,0.00022739,2]
[363209842,1748623887086,-283.16954427,0.00022739,2]
[363209843,1748623887096,-627.16,0.00022739,2]
[363209844,1748623887105,-420.0,0.00022739,2]
[363209845,1748623887114,-790.21,0.00022739,2]
[363209846,1748623887123,-445.44,0.00022739,2]
[363209847,1748623887132,-420.0,0.00022739,2]
[363209848,1748623887141,-531.24,0.00022739,2]
[363209849,1748623887151,-1600.27,0.00022739,2]
[363209850,1748623887161,-420.0,0.00022739,2]
[363209851,1748623887172,-420.0,0.00022739,2]
[363209852,1748623887181,-703.94,0.00022739,2]
[363209853,1748623887191,-556.9158401,0.00022739,2]
[363209854,1748623887202,-455.18,0.00022739,2]
[363209855,1748623887213,-420.0,0.00022739,2]
[363209856,1748623887223,-152.56483881,0.00022739,2]
[363209857,1748623887232,-844.11,0.00022739,2]
[363209858,1748623887242,-1265.11,0.00022739,2]
[363209859,1748623887251,-420.0,0.00022739,2]
[363209860,1748623887260,-420.0,0.00022739,2]
[363209861,1748623887270,-1036.54,0.00022739,2]
[363209862,1748623887280,-420.0,0.00022739,2]
[363209863,1748623887291,-420.0,0.00022739,2]
[363209864,1748623887300,-492.07,0.00022739,2]
[363209865,1748623887310,-61.94217027,0.00022739,2]
[363209866,1748623887339,-685.69782973,0.00022739,2]
[363209867,1748623887349,-449.73,0.00022739,2]
[363209868,1748623887358,-420.0,0.00022739,2]
[363209869,1748623887368,-978.42,0.00022739,2]
[363209870,1748623887378,-608.85,0.00022739,2]
[363209871,1748623887388,-513.83,0.00022739,2]
[363209872,1748623887397,-420.0,0.00022739,2]
[363209873,1748623887407,-420.0,0.00022739,2]
[363209874,1748623887416,-420.0,0.00022739,2]
[363209875,1748623887426,-420.0,0.00022739,2]
[363209876,1748623887435,-420.0,0.00022739,2]
[363209877,1748623887445,-420.0,0.00022739,2]
[363209878,1748623887459,-420.0,0.00022739,2]
[363209879,1748623887468,-600.4,0.00022739,2]
[363209880,1748623887478,-420.0,0.00022739,2]
[363209881,1748623887487,-1430.28,0.00022739,2]
[363209882,1748623887497,-470.08874326,0.00022739,2]
[363209883,1748623887509,-800.01125674,0.00022739,2]
[363209884,1748623887518,-583.63,0.00022739,2]
[363209885,1748623887528,-1174.79,0.00022739,2]
[363209886,1748623887538,-420.0,0.00022739,2]
[363209887,1748623887550,-452.74191817,0.00022739,2]
[363209888,1748623887559,-257.13696924,0.00022739,2]
[363209889,1748623887568,-420.0,0.00022739,2]
[363209890,1748623887578,-490.43136511,0.00022739,2]
[363209891,1748623887588,-420.0,0.00022739,2]
[363209892,1748623887598,-911.14,0.00022739,2]
[363209893,1748623887607,-856.64,0.00022739,2]
[363209894,1748623887617,-420.0,0.00022739,2]
[363209895,1748623887629,-420.0,0.00022739,2]
[363209896,1748623887639,-420.0,0.00022739,2]
[363209897,1748623887648,-420.0,0.00022739,2]
[363209898,1748623887658,-420.0,0.00022739,2]
[363209899,1748623887668,-474.46,0.00022739,2]
[363209900,1748623887677,-420.0,0.00022739,2]
[363209901,1748623887687,-420.0,0.00022739,2]
[363209902,1748623887698,-161.81462478,0.00022739,2]
[363209903,1748623887709,-662.95,0.00022739,2]
[363209904,1748623887719,-420.0,0.00022739,2]
[363209905,1748623887729,-441.33,0.00022739,2]
[363209906,1748623887739,-420.0,0.00022739,2]
[363209907,1748623887749,-1665.11,0.00022739,2]
[363209908,1748623887758,-204.73550305,0.00022739,2]
[363209909,1748623887767,-420.0,0.00022739,2]
[363209910,1748623887776,-426.58148416,0.00022739,2]
[363209911,1748623887786,-251.2140828,0.00022739,2]
[363209912,1748623887795,-915.57,0.00022739,2]
[363209913,1748623887805,-420.0,0.00022739,2]
[363209914,1748623887814,-1300.1,0.00022739,2]
[363209915,1748623887824,-420.0,0.00022739,2]
[363209916,1748623887833,-962.74,0.00022739,2]
[363209917,1748623887843,-420.0,0.00022739,2]
[363209918,1748623887853,-573.43,0.00022739,2]
[363209919,1748623887862,-420.0,0.00022739,2]
[363209920,1748623887872,-420.0,0.00022739,2]
[363209921,1748623887883,-425.46,0.00022739,2]
[363209922,1748623887893,-1104.08,0.00022739,2]
[363209923,1748623887902,-431.28668913,0.00022739,2]
[363209924,1748623887912,-442.93,0.00022739,2]
[363209925,1748623887922,-1338.47,0.00022739,2]
[363209926,1748623887931,-1975.23,0.00022739,2]
[363209927,1748623887940,-834.63,0.00022739,2]
[363209928,1748623887952,-420.0,0.00022739,2]
[363209929,1748623887961,-1397.92,0.00022739,2]
[363209930,1748623887971,-420.0,0.00022739,2]
[363209931,1748623887981,-700.13,0.00022739,2]
[363209932,1748623887990,-420.0,0.00022739,2]
[363209933,1748623887999,-886.67,0.00022739,2]
[363209934,1748623888008,-1342.99,0.00022739,2]
[363209935,1748623888018,-871.89,0.00022739,2]
[363209936,1748623888027,-1612.97,0.00022739,2]
[363209937,1748623888037,-421.74,0.00022739,2]
[363209938,1748623888047,-420.0,0.00022739,2]
[363209939,1748623888057,-2589.59,0.00022739,2]
[363209940,1748623888067,-420.0,0.00022739,2]
[363209941,1748623888079,-595.12,0.00022739,2]
[363209942,1748623888089,-862.16,0.00022739,2]
[363209943,1748623888099,-420.0,0.00022739,2]
[363209944,1748623888109,-974.37,0.00022739,2]
[363209945,1748623888119,-11136.1,0.00022739,2]
[363209946,1748623888129,-517.88,0.00022739,2]
[363209947,1748623888139,-721.0,0.00022739,2]
[363209948,1748623888148,-621.8,0.00022739,2]
[363209949,1748623888158,-3324.08,0.00022739,2]
[363209950,1748623888167,-795.97,0.00022739,2]
[363209951,1748623888176,-696.14,0.00022739,2]
[363209952,1748623888186,-487.3,0.00022739,2]
[363209953,1748623888196,-1757.51,0.00022739,2]
[363209954,1748623888207,-798.74,0.00022739,2]
[363209955,1748623888217,-308.53,0.00022739,2]
[363209956,1748623888227,-420.0,0.00022739,2]
[363209957,1748623888236,-715.19,0.00022739,2]
[363209958,1748623888246,-420.0,0.00022739,2]
[363209959,1748623888255,-420.0,0.00022739,2]
[363209960,1748623888264,-420.0,0.00022739,2]
[363209961,1748623888274,-420.0,0.00022739,2]
[363209962,1748623888283,-617.13,0.00022739,2]
[363209963,1748623888293,-1496.8,0.00022739,2]
[363209964,1748623888303,-427.26,0.00022739,2]
[363209965,1748623888312,-1137.49,0.00022739,2]
[363209966,1748623888322,-420.0,0.00022739,2]
[363209967,1748623888332,-420.0,0.00022739,2]
[363209968,1748623888341,-566.79,0.00022739,2]
[363209969,1748623888351,-1339.84,0.00022739,2]
[363209970,1748623888360,-420.0,0.00022739,2]
[363209971,1748623888370,-5165.25,0.00022739,2]
[363209972,1748623888380,-819.02,0.00022739,2]
[363209973,1748623888389,-420.0,0.00022739,2]
[363209974,1748623888398,-420.0,0.00022739,2]
[363209975,1748623888408,-1142.17,0.00022739,2]
[363209976,1748623888418,-420.0,0.00022739,2]
[363209977,1748623888427,-420.0,0.00022739,2]
[363209978,1748623888437,-420.0,0.00022739,2]
[363209979,1748623888446,-580.03,0.00022739,2]
[363209980,1748623888457,-4091.94,0.00022739,2]
[363209981,1748623888467,-3830.49,0.00022739,2]
[363209982,1748623888476,-533.87,0.00022739,2]
[363209983,1748623888486,-665.93,0.00022739,2]
[363209984,1748623888496,-420.0,0.00022739,2]
[363209985,1748623888506,-819.59,0.00022739,2]
[363209986,1748623888516,-151.0,0.00022739,7]
[363209987,1748623888526,-420.0,0.00022739,2]
[363209988,1748623888538,-873.01,0.00022739,2]
[363209989,1748623888552,-819.4,0.00022739,2]
[363209990,1748623888562,-420.0,0.00022739,2]
[363209991,1748623888571,-420.0,0.00022739,2]
[363209992,1748623888581,-467.0,0.00022739,2]
[363209993,1748623888591,-151.0,0.00022739,7]
[363209994,1748623888600,-914.44,0.00022739,2]
[363209995,1748623888609,-420.0,0.00022739,2]
[363209996,1748623888620,-420.0,0.00022739,2]
[363209997,1748623888630,-1468.83,0.00022739,2]
[363209998,1748623888639,-420.0,0.00022739,2]
[363209999,1748623888649,-420.0,0.00022739,2]
[363210000,1748623888658,-568.52,0.00022739,2]
[363210001,1748623888668,-503.04,0.00022739,2]
[363210002,1748623888678,-420.0,0.00022739,2]
[363210003,1748623888687,-420.0,0.00022739,2]
[363210004,1748623888696,-916.19,0.00022739,2]
[363210005,1748623888708,-420.0,0.00022739,2]
[363210006,1748623888717,-864.7649,0.00022739,7]
[363210007,1748623888727,-1569.97,0.00022739,2]
[363210008,1748623888736,-431.22718218,0.00022739,2]
[363210009,1748623888745,-2230.04,0.00022739,2]
[363210010,1748623888754,-420.0,0.00022739,2]
[363210011,1748623888763,-420.0,0.00022739,2]
[363210012,1748623888773,-864.7649,0.00022739,7]
[363210013,1748623888782,-757.73,0.00022739,2]
[363210014,1748623888792,-1603.99,0.00022739,2]
[363210015,1748623888801,-13246.07,0.00022739,2]
[363210016,1748623888810,-420.0,0.00022739,2]
[363210017,1748623888820,-601.76,0.00022739,2]
[363210018,1748623888830,-2252.85,0.00022739,2]
[363210019,1748623888839,-612.76,0.00022739,2]
[363210020,1748623888848,-500.0,0.00022739,2]
[363210021,1748623888857,-261.35997491,0.00022739,2]
[363210022,1748623888873,-158.64002509,0.00022739,2]
[363210023,1748623888883,-420.0,0.00022739,2]
[363210024,1748623888894,-3721.8,0.00022739,2]
[363210025,1748623888903,-420.0,0.00022739,2]
[363210026,1748623888912,-888.84,0.00022739,2]
[363210027,1748623888922,-420.0,0.00022739,2]
[363210028,1748623888931,-1601.2,0.00022739,2]
[363210029,1748623888940,-1192.36,0.00022739,2]
[363210030,1748623888951,-420.0,0.00022739,2]
[363210031,1748623888961,-432.38,0.00022739,2]
[363210032,1748623888970,-534.94,0.00022739,2]
[363210033,1748623888979,-420.0,0.00022739,2]
[363210034,1748623888988,-663.49,0.00022739,2]
[363210035,1748623888999,-629.32,0.00022739,2]
[363210036,1748623889008,-4150.25,0.00022739,2]
[363210037,1748623889018,-420.0,0.00022739,2]
[363210038,1748623889027,-420.0,0.00022739,2]
[363210039,1748623889036,-2407.04,0.00022739,2]
[363210040,1748623889046,-2887.46,0.00022739,2]
[363210041,1748623889055,-420.0,0.00022739,2]
[363210042,1748623889064,-245.99280307,0.00022739,2]
[363210043,1748623889073,-6691.98,0.00022739,2]
[363210044,1748623889083,-420.0,0.00022739,2]
[363210045,1748623889092,-420.0,0.00022739,2]
[363210046,1748623889102,-945.73,0.00022739,2]
[363210047,1748623889111,-420.0,0.00022739,2]
[363210048,1748623889120,-520.69,0.00022739,2]
[363210049,1748623889130,-575.68,0.00022739,2]
[363210050,1748623889139,-2415.62,0.00022739,2]
[363210051,1748623889148,-420.0,0.00022739,2]
[363210052,1748623889157,-420.0,0.00022739,2]
[363210053,1748623889167,-1542.58,0.00022739,2]
[363210054,1748623889176,-508.51,0.00022739,2]
[363210055,1748623889185,-1775.3,0.00022739,2]
[363210056,1748623889194,-600.93,0.00022739,2]
[363210057,1748623889206,-752.95,0.00022739,2]
[363210058,1748623889215,-280.31717184,0.00022739,2]
[363210059,1748623889248,-294.18914481,0.00021917,2]
[363210060,1748623889260,-205.81085519,0.00021917,2]
[363210061,1748623889270,-102.68535898,0.00022191,2]
[363210062,1748623889281,-317.31464102,0.00022191,2]
[363210063,1748623889290,-135.99451092,0.00022465,2]
[363210064,1748623889302,-284.00548908,0.00022465,2]
[363210065,1748623889311,-116.59430702,0.00022739,2]
[363210066,1748623889322,-23.08852114,0.00022739,2]
[363210067,1748623889332,-298.67994966,0.00022739,2]
[363210068,1748623889343,-121.32005034,0.00022739,2]
[363210069,1748623889353,-181.76545392,0.00022739,2]
[363210070,1748623889364,-1041.0,0.00022739,2]
[363210071,1748623889585,-284.3,0.00022465,2]
[363210072,1748623889598,-135.7,0.00022465,2]
[363210073,1748623889608,-2458.9110746,0.00022739,2]
[363210074,1748623889634,-365.855,0.00021917,2]
[363210075,1748623889645,-54.145,0.00021917,2]
[363210076,1748623889654,-7850.06284015,0.00022739,2]
[363210077,1748623889665,-2150.6,0.00022739,2]
[363210078,1748623889677,-537.5,0.00022739,2]
[363210079,1748623889688,-6180.32560489,0.00022739,2]
[363210080,1748623889725,-275.65,0.00021917,2]
[363210081,1748623889737,-224.35,0.00021917,2]
[363210082,1748623889747,-87.6774563,0.00022465,2]
[363210083,1748623889760,-338.84344169,0.00022465,2]
[363210084,1748623889769,-6233.34067107,0.00022739,2]
[363210085,1748623889789,-4178.46548963,0.00022739,2]
[363210086,1748623889802,-7466.20886574,0.00022739,2]
[363210087,1748623889812,-4025.54,0.00022739,2]
[363210088,1748623889824,-1486.88,0.00022739,2]
[363210089,1748623889833,-601.38,0.00022739,2]
[363210090,1748623889842,-420.0,0.00022739,2]
[363210091,1748623889852,-420.0,0.00022739,2]
[363210092,1748623889862,-1706.01,0.00022739,2]
[363210093,1748623889872,-420.0,0.00022739,2]
[363210094,1748623889882,-2791.19,0.00022739,2]
[363210095,1748623889892,-935.33,0.00022739,2]
[363210096,1748623889902,-1094.63,0.00022739,2]
[363210097,1748623889912,-420.0,0.00022739,2]
[363210098,1748623889921,-425.87,0.00022739,2]
[363210099,1748623889931,-435.16,0.00022739,2]
[363210100,1748623889941,-420.0,0.00022739,2]
[363210101,1748623889952,-3826.48,0.00022739,2]
[363210102,1748623889961,-2578.11,0.00022739,2]
[363210103,1748623889971,-1441.98,0.00022739,2]
[363210104,1748623889980,-967.21,0.00022739,2]
[363210105,1748623889990,-420.0,0.00022739,2]
[363210106,1748623889999,-856.69,0.00022739,2]
[363210107,1748623890008,-660.71,0.00022739,2]
[363210108,1748623890018,-420.0,0.00022739,2]
[363210109,1748623890027,-1327.47,0.00022739,2]
[363210110,1748623890037,-420.0,0.00022739,2]
[363210111,1748623890046,-961.47,0.00022739,2]
[363210112,1748623890056,-256.47248873,0.00022739,2]
[363210113,1748623890067,-959.72,0.00022739,2]
[363210114,1748623890076,-516.04,0.00022739,2]
[363210115,1748623890086,-420.0,0.00022739,2]
[363210116,1748623890096,-420.0,0.00022739,2]
[363210117,1748623890106,-1663.16,0.00022739,2]
[363210118,1748623890116,-420.0,0.00022739,2]
[363210119,1748623890125,-2777.45,0.00022739,2]
[363210120,1748623890135,-3357.68,0.00022739,2]
[363210121,1748623890145,-420.0,0.00022739,2]
[363210122,1748623890155,-420.0,0.00022739,2]
[363210123,1748623890165,-597.13,0.00022739,2]
[363210124,1748623890175,-1439.26,0.00022739,2]
[363210125,1748623890185,-1993.51,0.00022739,2]
[363210126,1748623890195,-420.0,0.00022739,2]
[363210127,1748623890207,-202.37962199,0.00022739,2]
[363210128,1748623890217,-2892.8,0.00022739,2]